Cogmind - Beta 16 @@@ ROGUE MODE // 2026.01.04 @ 12:49:22 Player: Oldman Pu Result: Destroyed by S-27 Virus with Autogun Performance ------------- Evolutions (5) 2500 Regions Visited (12) 2400 Robots Destroyed (194) 970 Value Destroyed (6530) 6530 Prototype IDs (11) 220 Alien Tech Used (0) 0 Bonus (79) 79 TOTAL SCORE: 12699 Bonus ------- High Alert Combat Kills 6 Follower Combat Kills 136 Friendly Fire -63 Cogmind --------- Core Integrity 0/1000 Matter 34/300 Energy 87/315 System Corruption 4% Temperature Cool (0) Movement Core (900) Ox17 Location -5/Upper Caves Parts ------- > --- POWER (3) -------- Neutrino Core > --- PROPULSION (4) --- (None) > --- UTILITY (6) ------ High-capacity Storage Unit > --- WEAPON (4) ------- (None) > --- INVENTORY (20) --- Centrium Heavy Treads Advanced Heat Sink Advanced Heat Sink Advanced Heat Sink Advanced Heat Sink Compact Matter Pod (150) Point Defense System Tesla Rifle Heavy Laser Wave Gun Advanced Variable Charge Gun Flak Gun Improved KE Penetrator Peak State ------------ > --- POWER ------------ Light Angular Momentum Engine Neutrino Core Quantum Reactor > --- PROPULSION ------- Improved Treads Improved Treads Centrium Heavy Treads > --- UTILITY ---------- Advanced Heat Sink Advanced Cooling System High-capacity Storage Unit Kinecellerator Improved Light Armor Plating Centrium Medium Armor Plating > --- WEAPON ----------- Heavy Laser High-powered Field Laser Advanced KE Penetrator Advanced KE Penetrator > --- INVENTORY -------- Fusion Compressor Neutrino Core Flexi-carbon Leg Advanced Heat Sink Advanced Heat Sink Advanced Heat Sink Advanced Heat Sink Compact Matter Pod Hardened Light Armor Plating Improved Medium Armor Plating Improved Medium Armor Plating Improved Field Recycling Unit Wave Gun Advanced Variable Charge Gun Advanced Variable Charge Gun Flak Gun Advanced KE Penetrator Advanced KE Penetrator Magnetic Acceleration Cannon [Rating: 105] Favorites ----------- Power Improved Deuterium Engine Engine Improved Deuterium Engine Power Core Enhanced Nuclear Core Reactor Quantum Reactor Propulsion Wheel Treads Improved Treads Leg Carbon-fiber Leg Wheel Wheel Utility High-capacity Storage Unit Device Improved Cooling System Storage High-capacity Storage Unit Processor Advanced Targeting Computer Protection Hardened Light Armor Plating Weapon Improved Assault Rifle Energy Gun High-powered Field Laser Ballistic Gun Improved Assault Rifle Ballistic Cannon Magnetic Acceleration Cannon Build | -11 -10 -10 -9 -8 -7 -6 -6 -6 -6 -6 -5 -5 ------- Run | Yrd Mat Min Mat Mat Fac Fac Ext Cet Arc Hub Fac Upp Slots Evolved 10 | . . . 2 2 2 2 . . . . 2 . Power 2 | . . . . 1 . . . . . . 1 . Propulsion 2 | . . . . . 1 1 . . . . . . Utility 4 | . . . 2 . 1 1 . . . . . . Weapon 2 | . . . . 1 . . . . . . 1 . Parts Attached 163 | 6 4 2 25 29 5 7 40 11 9 1 21 3 Power 27 | 1 1 1 3 6 1 1 7 1 2 . 2 1 Engine 17 | 1 1 . 2 5 . . 7 . . . 1 . Core 9 | . . 1 1 1 1 1 . . 2 . 1 1 Reactor 1 | . . . . . . . . 1 . . . . Propulsion 53 | 2 . . 9 8 2 1 17 2 3 . 8 1 Treads 6 | . . . . 1 . . . 2 3 . . . Leg 7 | . . . 2 . . . 5 . . . . . Wheel 40 | 2 . . 7 7 2 1 12 . . . 8 1 Hover . | . . . . . . . . . . . . . Flight . | . . . . . . . . . . . . . Utility 42 | 1 3 . 6 6 1 4 7 4 4 1 5 . Device 16 | . . . 2 3 . 1 3 1 2 . 4 . Storage 5 | 1 2 . . 1 . 1 . . . . . . Processor 2 | . . . 2 . . . . . . . . . Hackware . | . . . . . . . . . . . . . Protection 19 | . 1 . 2 2 1 2 4 3 2 1 1 . Artifact . | . . . . . . . . . . . . . Weapon 41 | 2 . 1 7 9 1 1 9 4 . . 6 1 Energy Gun 14 | . . 1 3 2 . 1 2 2 . . 3 . Energy Cannon . | . . . . . . . . . . . . . Ballistic Gun 26 | 2 . . 4 7 1 . 7 2 . . 2 1 Ballistic Cannon 1 | . . . . . . . . . . . 1 . Launcher . | . . . . . . . . . . . . . Special Weapon . | . . . . . . . . . . . . . Impact Weapon . | . . . . . . . . . . . . . Slashing Weapon . | . . . . . . . . . . . . . Piercing Weapon . | . . . . . . . . . . . . . Special Melee Weapon . | . . . . . . . . . . . . . Unidentified Prototypes 9 | . . . . 3 1 . . 4 . . 1 . Parts Lost 80 | . . . 12 11 2 . 12 13 . . 10 20 Power 12 | . . . 2 2 . . 1 3 . . 2 2 Propulsion 32 | . . . 6 4 2 . 9 4 . . 1 6 Utility 18 | . . . 1 2 . . 2 4 . . 4 5 Weapon 18 | . . . 3 3 . . . 2 . . 3 7 Highest Loss Streak 17 | . . . 3 5 2 . 2 11 . . 6 17 To Critical Strikes 1 | . . . . . . . . 1 . . . . Average Backups 18 | 1 13 19 19 19 18 19 19 18 19 20 18 16 Power 2 | . 1 1 1 1 3 3 4 3 3 3 1 . Propulsion 1 | . . . 2 2 2 3 1 . 1 1 1 2 Utility 7 | . 7 10 8 8 7 7 7 7 7 8 8 6 Weapon 6 | . 5 7 6 7 6 6 6 6 7 8 6 7 Tool/Special . | . . . . . . . . . . . . . Unused Backups 38 | . 1 1 6 12 . 2 4 2 1 . . 9 Power 8 | . 1 . 2 2 . 1 1 . 1 . . . Propulsion 4 | . . . 1 1 . 1 . . . . . 1 Utility 10 | . . 1 . 3 . . 3 . . . . 3 Weapon 16 | . . . 3 6 . . . 2 . . . 5 Tool/Special . | . . . . . . . . . . . . . Average Slot Usage (%) 94 | . 97 100 98 98 96 92 96 87 92 93 92 57 Engine 9 | . 14 4 7 16 13 4 8 8 1 . 3 2 Core 3 | . . 9 2 . 1 8 3 . 4 6 7 1 Treads 2 | . . . . . . . . 8 18 20 7 . Leg 1 | . . . 1 . . . 5 10 1 . . . Wheel 16 | . 26 28 19 17 19 22 17 . . . 10 12 Device 10 | . . . 10 8 7 7 13 14 19 20 13 12 Storage 8 | . 14 14 11 9 7 6 6 6 6 6 5 5 Processor 5 | . . . 11 9 7 6 6 4 . . . . Protection 11 | . 12 14 10 8 14 14 12 10 13 13 12 5 Energy Gun 7 | . . 13 11 9 7 6 8 9 6 6 7 3 Ballistic Gun 14 | . 28 14 11 17 15 13 10 9 13 13 13 9 Peak Build Rating 105 | 6 11 14 20 38 42 50 61 91 96 96 105 75 Average Rating 42 | 5 9 13 17 31 38 44 52 76 94 95 92 48 On Entrance 45 | . 6 10 14 18 37 42 48 61 87 96 95 75 Avg Prop Armor Cover (%) 3 | . . . . . . . 2 2 2 . 7 . Naked Turns . | . . . . . . . . . . . . . Heaviest Build 128 | 10 52 54 59 79 84 93 100 101 110 110 128 98 Greatest Support 126 | 20 20 20 26 32 36 46 60 100 126 126 126 40 Greatest Overweight (x) 21 | . 5 2 5 4 5 2 7 5 1 . 7 21 Average Overweight (x) 1 | . 1 2 2 2 2 1 1 . . . 1 3 Largest Inventory Capacity 20 | 8 20 20 20 20 20 20 20 20 20 20 20 20 Average Capacity 19 | 7 17 20 20 20 20 20 20 20 20 20 20 20 Most Carried 20 | 2 19 20 20 20 20 20 20 20 20 20 20 20 Average Carried 18 | 1 13 19 19 19 18 19 19 17 19 20 18 17 Final Capacity 20 | 8 20 20 20 20 20 20 20 20 20 20 20 20 Final Carried 20 | 2 18 20 20 20 20 20 20 18 20 20 19 14 Class Distribution -------------------- 46% | Scavenger-Tank 26% | Mutant 18% | Scavenger-Gunner 7% | Scavenger-Mutant Dominant Class ---------------- Mutant | -10/Materials Mutant | -10/Mines Mutant | -9/Materials Scavenger-Gunner | -8/Materials Scavenger-Tank | -7/Factory Scavenger-Tank | -6/Factory Scavenger-Tank | -6/Extension Scavenger-Tank | -6/Cetus Scavenger-Tank | -6/Archives Scavenger-Tank | -6/Hub_04(d) Scavenger-Tank | -5/Factory Scavenger-Tank | -5/Upper Caves Resources | -11 -10 -10 -9 -8 -7 -6 -6 -6 -6 -6 -5 -5 ----------- Run | Yrd Mat Min Mat Mat Fac Fac Ext Cet Arc Hub Fac Upp Matter Collected 4863 | 184 168 62 483 1024 109 . 1475 247 228 122 547 214 Remotely . | . . . . . . . . . . . . . Salvage Created 9334 | . 253 206 1296 2020 251 . 2370 292 347 519 1517 263 Parts 453 | . 13 14 77 103 17 . 107 13 15 27 62 5 Haulers Intercepted 13 | . 2 . 5 4 . . 1 . . . 1 . Recyclers Shooed 7 | . . . . 3 . . 3 . . 1 . . Parts Field Recycled 20 | . . . . . . 14 . . . . . 6 Retrieved Matter 319 | . . . . . . 279 . . . . . 40 Parts Self-Destructed 7 | . . . . . . . . . . . . 7 Prevented . | . . . . . . . . . . . . . Parts Restored . | . . . . . . . . . . . . . Kills | -11 -10 -10 -9 -8 -7 -6 -6 -6 -6 -6 -5 -5 ------- Run | Yrd Mat Min Mat Mat Fac Fac Ext Cet Arc Hub Fac Upp Combat Hostiles Destroyed 125 | . 3 4 19 30 5 . 30 4 4 5 16 5 Guns 119 | . 3 4 19 30 5 . 29 2 4 5 15 3 Cannons 3 | . . . . . . . . . . . 1 2 Classes Destroyed 15 | . 3 1 5 2 . . 3 . . . 1 . Worker 21 | . . 1 4 6 4 . 2 . . . 4 . Builder 7 | . . . . . . . 4 . . 2 1 . Tunneler 2 | . . . 1 . . . . . . . 1 . Hauler 13 | . 2 . 5 4 . . 1 . . . 1 . Recycler 15 | . . . 4 5 . . 3 . . 1 2 . Operator 3 | . . . . . . . 3 . . . . . Watcher 8 | . 2 . 1 1 . . 2 1 . . 1 . Swarmer 25 | . . . 7 7 4 . 6 . . . . 1 Grunt 44 | . 3 4 6 9 . . 11 . . . 7 4 Duelist 3 | . . . 1 2 . . . . . . . . Sentry 30 | . . . 5 7 1 . 10 . 4 3 . . Specialist 4 | . . . . 4 . . . . . . . . Hunter 10 | . . . . 1 . . 2 1 . 2 4 . Programmer 5 | . . . . . . . . . . . 5 . Behemoth 1 | . . . . . . . 1 . . . . . Cetus Guard 3 | . . . . . . . . 3 . . . . Best Kill Streak 9 | . 4 3 5 5 9 . 6 3 1 7 9 2 Combat Bots Only 6 | . 2 2 4 5 5 . 6 3 1 4 6 2 Max Kills in Single Turn 3 | . 1 1 1 2 2 . 2 1 1 2 3 1 Gunslinging 1 | . . . . . 1 . . . . . . . Exploded . | . . . . . . . . . . . . . Melee . | . . . . . . . . . . . . . Uniques/NPCs Destroyed . | . . . . . . . . . . . . . Combat | -11 -10 -10 -9 -8 -7 -6 -6 -6 -6 -6 -5 -5 -------- Run | Yrd Mat Min Mat Mat Fac Fac Ext Cet Arc Hub Fac Upp Hostile Shots Fired 1467 | . 17 26 143 145 68 1 465 104 19 81 186 212 Missed 471 | . 7 6 40 36 20 . 174 30 9 36 54 59 Hits 996 | . 10 20 103 109 48 1 291 74 10 45 132 153 Melee 7 | . . . 7 . . . . . . . . . Projectile 989 | . 10 20 96 109 48 1 291 74 10 45 132 153 Critical Strikes 34 | . . . 5 4 . . 1 13 3 2 3 3 Damage Taken 14925 | . 181 290 1332 1673 514 21 3257 1870 241 521 2432 2593 Core 2246 | . 88 93 165 277 62 21 298 208 . 26 206 802 Absorbed by Shields 11 | . . . . . . . 11 . . . . . Regen/Repaired (Parts) 403 | . 24 . 49 99 . 231 . . . . . . Core Remaining (%) 59 | 100 . 27 58 49 91 . . . . 34 . . Volleys Fired 539 | . 31 22 117 103 12 1 135 26 15 14 40 23 Largest 4 | . 2 2 2 3 3 3 3 3 3 3 4 4 Hottest 209 | . 40 76 85 121 116 131 168 168 140 140 209 172 Shots Fired 1419 | . 62 44 224 307 36 3 393 67 44 42 146 51 Gun 1396 | . 62 44 224 307 36 3 393 67 44 42 136 38 Cannon 23 | . . . . . . . . . . . 10 13 Launcher . | . . . . . . . . . . . . . Special . | . . . . . . . . . . . . . Kinetic 905 | . 62 22 117 204 24 2 243 33 30 28 101 39 Thermal 514 | . . 22 107 103 12 1 150 34 14 14 45 12 Explosive . | . . . . . . . . . . . . . Electromagnetic . | . . . . . . . . . . . . . Robot Hit Streak 32 | . 7 12 22 32 14 16 18 13 21 6 12 10 Robot Miss Streak 7 | . 4 3 6 4 4 1 7 4 1 5 4 4 Penetration Max 1 | . . . . 1 . . 1 1 . 1 1 1 Secondary Targets 22 | . 1 . 1 4 2 . 6 2 . 1 5 . Max Gunslinging Chain 1 | . 1 . 1 1 1 . 1 1 . 1 1 . Shots Hit Robots 984 | . 43 27 159 213 23 2 293 46 33 23 90 32 Core Hits 403 | . 17 13 64 79 12 . 115 20 11 15 47 10 Critical Kills 15 | . . . . 1 . . . . 1 3 9 1 Critical Parts Destroyed 22 | . . . . 4 . 1 1 . 3 . 12 1 Critical Strikes 69 | . . 1 4 10 . 1 12 4 7 3 25 2 Burn 30 | . . 1 4 5 . . 11 4 2 . 3 . Destroy 38 | . . . . 5 . 1 1 . 5 3 21 2 Blast 1 | . . . . . . . . . . . 1 . Melee Attacks . | . . . . . . . . . . . . . Impact . | . . . . . . . . . . . . . Slashing . | . . . . . . . . . . . . . Piercing . | . . . . . . . . . . . . . Sneak Attacks . | . . . . . . . . . . . . . Combat Hostiles . | . . . . . . . . . . . . . Follow-up Attacks . | . . . . . . . . . . . . . Damage Inflicted 19180 | . 364 307 2051 3656 425 35 5650 1111 891 714 2992 984 Guns 18601 | . 348 307 2017 3656 425 35 5650 1111 885 714 2765 688 Cannons 523 | . . . . . . . . . . . 227 296 Explosions . | . . . . . . . . . . . . . Melee . | . . . . . . . . . . . . . Ramming 56 | . 16 . 34 . . . . . 6 . . . Kinetic 11555 | . 348 119 805 2125 244 17 3236 438 618 474 2338 793 Thermal 7569 | . . 188 1212 1531 181 18 2414 673 267 240 654 191 Explosive . | . . . . . . . . . . . . . Electromagnetic . | . . . . . . . . . . . . . Impact . | . . . . . . . . . . . . . Slashing . | . . . . . . . . . . . . . Piercing . | . . . . . . . . . . . . . Highest Corruption 4 | . . . . . . . . . . . 4 4 Average Corruption 3 | . . . . . . . . . . . 2 4 Corruption Purged . | . . . . . . . . . . . . . Corruption Blocked . | . . . . . . . . . . . . . Effects 11 | . . . . . . . . . . . 5 6 Message Errors 4 | . . . . . . . . . . . 4 . Matter Fused 3 | . . . . . . . . . . . . 3 Heat Flow Errors 1 | . . . . . . . . . . . . 1 Energy Discharges 2 | . . . . . . . . . . . 1 1 Data Loss (minor) 1 | . . . . . . . . . . . . 1 Overload Shots . | . . . . . . . . . . . . . Overflow Damage 34 | . . . 12 . . . . . . . 3 19 Projectiles 22 | . . . . . . . . . . . 3 19 Explosions . | . . . . . . . . . . . . . Melee 12 | . . . 12 . . . . . . . . . Knockbacks 6 | . . . . . . . . . . . 1 5 Impact . | . . . . . . . . . . . . . Kinetic 6 | . . . . . . . . . . . 1 5 Secondary . | . . . . . . . . . . . . . Self-Inflicted Damage 24 | . 7 . 17 . . . . . . . . . Shots . | . . . . . . . . . . . . . Rammed 6 | . 4 . 1 . . . . . 1 . . . Targets Rammed 6 | . 4 . 1 . . . . . 1 . . . Kicked . | . . . . . . . . . . . . . Crushed . | . . . . . . . . . . . . . Highest Temperature 357 | . 18 357 47 327 42 12 227 21 21 13 214 96 Average Temperature 65 | . 7 133 14 71 21 8 79 11 13 7 60 15 Received Heat Transfer 3540 | . 72 162 366 567 72 . 759 198 63 84 453 744 Effects 2 | . . . . . . . 2 . . . . . Interference 2 | . . . . . . . 2 . . . . . Siege Activations . | . . . . . . . . . . . . . Martial Activations . | . . . . . . . . . . . . . Shielding Activations . | . . . . . . . . . . . . . Robots Disrupted . | . . . . . . . . . . . . . Combat Hostiles . | . . . . . . . . . . . . . Robots Corrupted 1 | . . . 1 . . . . . . . . . Combat Hostiles . | . . . . . . . . . . . . . Parts Fried 2 | . . . 2 . . . . . . . . . Impact Corruptions 1 | . . . 1 . . . . . . . . . Robots Melted 4 | . . . . . . . 2 2 . . . . Combat Hostiles 3 | . . . . . . . 1 2 . . . . Parts Melted 31 | . . . 4 7 . . 11 3 1 . 1 4 Heat Transferred 17425 | . . 555 3214 3589 296 50 5651 1406 592 407 1369 296 Parts Sabotaged . | . . . . . . . . . . . . . Parts Stolen . | . . . . . . . . . . . . . Parts Stripped . | . . . . . . . . . . . . . Power Chain Reactions . | . . . . . . . . . . . . . Alert | -11 -10 -10 -9 -8 -7 -6 -6 -6 -6 -6 -5 -5 ------- Run | Yrd Mat Min Mat Mat Fac Fac Ext Cet Arc Hub Fac Upp Maximum Alert Level 2 | . . . . 1 1 . 2 1 . 1 1 . Low Security (%) 86 | 100 100 100 100 87 39 100 63 83 100 83 74 . Level 1 13 | . . . . 12 60 . 32 16 . 16 25 . Level 2 . | . . . . . . . 3 . . . . . Level 3 . | . . . . . . . . . . . . . Level 4 . | . . . . . . . . . . . . . Level 5 . | . . . . . . . . . . . . . High Security . | . . . . . . . . . . . . . Max Security . | . . . . . . . . . . . . . Peak Influence 481 | . 54 45 137 338 231 93 481 264 87 211 385 . Initial 264 | . . . 3 42 151 93 . 264 7 . 93 . Average 94 | . 6 14 42 145 193 15 158 111 28 76 148 . Influence Increases 4412 | . 143 105 624 989 140 5 1116 119 127 251 638 155 Destroy 0b10 Robot/C 2560 | . 60 80 380 600 100 . 660 80 80 100 320 100 Destroy 0b10 Robot/NC 350 | . 20 5 75 80 20 . 80 5 . 15 50 . Destroy Leader 580 | . 28 20 112 180 20 . 66 10 . 50 84 10 Allied During Kill 9 | . . . . . . . 9 . . . . . Successful Hack 117 | . 20 . 12 31 . 5 30 19 . . . . Disable Machine 270 | . . . . 30 . . 45 . 30 45 120 . Destroy Structure 121 | . . . . 8 . . 1 5 17 26 64 . Partial Spotted 15 | . . . . . . . . . . 15 . . Lose Combat Pursuer 390 | . 15 . 45 60 . . 225 . . . . 45 Influence Decreases 4405 | . 143 95 533 755 284 196 644 572 146 60 468 509 Entered New Map 801 | . . . 7 59 184 98 . 208 12 . 98 135 Time Decay 2832 | . 143 95 441 586 80 98 517 214 134 60 270 194 Lost Part 732 | . . . 85 110 20 . 107 130 . . 100 180 Lost Ally 40 | . . . . . . . 20 20 . . . . Squads Dispatched 29 | . 2 . 3 6 . 1 7 1 . 4 5 . Investigation 8 | . 1 . 1 1 . . 3 1 . . 1 . Extermination 1 | . . . . . . . . . . . 1 . Reinforcement 16 | . 1 . 2 3 . 1 4 . . 2 3 . Assault . | . . . . . . . . . . . . . Garrison 4 | . . . . 2 . . . . . 2 . . Intercept . | . . . . . . . . . . . . . Searches Triggered . | . . . . . . . . . . . . . Construction Impeded 5 | . . . . . . . 2 . . 1 2 . Haulers Reinforced 1 | . . . . . . . . . . . 1 . Active Scanning Responses . | . . . . . . . . . . . . . Cargo Convoy Interrupts . | . . . . . . . . . . . . . Stealth | -11 -10 -10 -9 -8 -7 -6 -6 -6 -6 -6 -5 -5 --------- Run | Yrd Mat Min Mat Mat Fac Fac Ext Cet Arc Hub Fac Upp Distress Signals 15 | . 1 . 1 3 . . 2 2 . 1 5 . Communications Jammed . | . . . . . . . . . . . . . Distress Signals . | . . . . . . . . . . . . . Times Spotted 222 | . 13 6 30 44 5 2 59 8 8 7 28 12 Peak Tracking Total 8 | . 3 2 3 6 5 3 6 5 1 6 8 5 Tactical Retreats 17 | . 1 . 2 4 . . 7 . . . . 3 Traps | -11 -10 -10 -9 -8 -7 -6 -6 -6 -6 -6 -5 -5 ------- Run | Yrd Mat Min Mat Mat Fac Fac Ext Cet Arc Hub Fac Upp Traps Triggered 9 | . 1 . 1 2 . . 5 . . . . . Indirectly . | . . . . . . . . . . . . . Trap Hack Attempts . | . . . . . . . . . . . . . Triggered . | . . . . . . . . . . . . . Disarmed . | . . . . . . . . . . . . . Reprogrammed . | . . . . . . . . . . . . . Reused . | . . . . . . . . . . . . . Traps Extracted . | . . . . . . . . . . . . . Installed . | . . . . . . . . . . . . . Triggered . | . . . . . . . . . . . . . Machines | -11 -10 -10 -9 -8 -7 -6 -6 -6 -6 -6 -5 -5 ---------- Run | Yrd Mat Min Mat Mat Fac Fac Ext Cet Arc Hub Fac Upp Machines Disabled 18 | . . . . 2 . . 3 . 2 3 8 . Max in Single Turn 1 | . . . . 1 . . 1 . 1 1 1 . Machines Repaired . | . . . . . . . . . . . . . Machines Dismantled . | . . . . . . . . . . . . . Machines Sabotaged . | . . . . . . . . . . . . . Overloaded Fab Kills . | . . . . . . . . . . . . . Hacking | -11 -10 -10 -9 -8 -7 -6 -6 -6 -6 -6 -5 -5 --------- Run | Yrd Mat Min Mat Mat Fac Fac Ext Cet Arc Hub Fac Upp Machines Accessed 29 | . 3 . 4 6 . 2 9 3 1 . 1 . Terminals 20 | . 2 . 2 3 . 1 9 3 . . . . Fabricators . | . . . . . . . . . . . . . Repair Stations 5 | . 1 . 1 1 . 1 . . . . 1 . Recycling Units . | . . . . . . . . . . . . . Scanalyzers 3 | . . . 1 2 . . . . . . . . Garrison Access . | . . . . . . . . . . . . . Total Hacks 113 | . 18 . 11 17 . 5 21 12 25 . 4 . Successful 74 | . 13 . 8 15 . 3 5 4 25 . 1 . Failed 38 | . 5 . 3 1 . 2 16 8 . . 3 . Catastrophic 11 | . . . 1 . . . 6 4 . . . . Database Lockouts 1 | . . . . 1 . . . . . . . . Manual . | . . . . . . . . . . . . . Terminals 60 | . 11 . 5 9 . 2 21 12 . . . . Fabricators . | . . . . . . . . . . . . . Repair Stations 20 | . 7 . 2 4 . 3 . . . . 4 . Recycling Units . | . . . . . . . . . . . . . Scanalyzers 8 | . . . 4 4 . . . . . . . . Garrison Access . | . . . . . . . . . . . . . Terminal Hacks 51 | . 7 . 2 7 . 1 5 4 25 . . . Record 34 | . 3 . . 2 . . . 4 25 . . . Prototype ID Bank 1 | . . . . 1 . . . . . . . . Open Door 3 | . . . . . . . 3 . . . . . Open DSF 1 | . . . . . . 1 . . . . . . Level Access Points 1 | . 1 . . . . . . . . . . . Branch Access Points 1 | . . . . . . . 1 . . . . . Alert Level 1 | . . . 1 . . . . . . . . . Locate Traps 1 | . 1 . . . . . . . . . . . Dispatch Records 1 | . . . . . . . 1 . . . . . Patrol Status 1 | . . . . 1 . . . . . . . . Transport Status 1 | . . . . 1 . . . . . . . . Assault Status 1 | . 1 . . . . . . . . . . . Hauler Manifests 1 | . . . . 1 . . . . . . . . Registered Prototypes 1 | . . . . 1 . . . . . . . . Zone Layout 2 | . 1 . 1 . . . . . . . . . Fabricator Hacks . | . . . . . . . . . . . . . Repair Station Hacks 15 | . 6 . 2 4 . 2 . . . . 1 . Scan Component 8 | . 3 . 1 2 . 1 . . . . 1 . Repair 7 | . 3 . 1 2 . 1 . . . . . . Recycling Unit Hacks . | . . . . . . . . . . . . . Scanalyzer 8 | . . . 4 4 . . . . . . . . Insert Component 4 | . . . 2 2 . . . . . . . . Analyze 4 | . . . 2 2 . . . . . . . . Garrison Access Hacks . | . . . . . . . . . . . . . Unauthorized Hacks . | . . . . . . . . . . . . . Terminals . | . . . . . . . . . . . . . Fabricators . | . . . . . . . . . . . . . Repair Stations . | . . . . . . . . . . . . . Recycling Units . | . . . . . . . . . . . . . Scanalyzers . | . . . . . . . . . . . . . Garrison Access . | . . . . . . . . . . . . . Data Cores Recovered 1 | . . . . . . . 1 . . . . . Used . | . . . . . . . . . . . . . Hacking Detections 25 | . 3 . 3 5 . 1 9 3 . . 1 . Full Trace Events 7 | . 1 . . 1 . . 3 1 . . 1 . Feedback Events . | . . . . . . . . . . . . . Feedback Blocked . | . . . . . . . . . . . . . Robot Schematics Acquired . | . . . . . . . . . . . . . Robots Built . | . . . . . . . . . . . . . Authchips . | . . . . . . . . . . . . . Time . | . . . . . . . . . . . . . Total Robot Build Rating . | . . . . . . . . . . . . . Part Schematics Acquired 4 | . . . 2 2 . . . . . . . . Parts Built . | . . . . . . . . . . . . . Authchips . | . . . . . . . . . . . . . Time . | . . . . . . . . . . . . . Total Part Build Rating . | . . . . . . . . . . . . . Part Studies Acquired . | . . . . . . . . . . . . . Parts Repaired 7 | . 3 . 1 2 . 1 . . . . . . Time 242 | . 78 . 38 88 . 38 . . . . . . Parts Recycled . | . . . . . . . . . . . . . Recycled Matter . | . . . . . . . . . . . . . Retrieved Matter . | . . . . . . . . . . . . . Retrieved Components . | . . . . . . . . . . . . . Parts Scanalyzed 4 | . . . 2 2 . . . . . . . . Part Schematics Acquired 4 | . . . 2 2 . . . . . . . . Parts Damaged . | . . . . . . . . . . . . . Bothacking | -11 -10 -10 -9 -8 -7 -6 -6 -6 -6 -6 -5 -5 ------------ Run | Yrd Mat Min Mat Mat Fac Fac Ext Cet Arc Hub Fac Upp Used RIF Installer . | . . . . . . . . . . . . . Robots Hacked . | . . . . . . . . . . . . . Non-combat . | . . . . . . . . . . . . . Combat . | . . . . . . . . . . . . . Robot Hacks Applied . | . . . . . . . . . . . . . Relay Couplers Released . | . . . . . . . . . . . . . Fabnet Peak Effective % . | . . . . . . . . . . . . . Robots Rewired . | . . . . . . . . . . . . . Allies Hacked . | . . . . . . . . . . . . . Hacks Repelled . | . . . . . . . . . . . . . Allies | -11 -10 -10 -9 -8 -7 -6 -6 -6 -6 -6 -5 -5 -------- Run | Yrd Mat Min Mat Mat Fac Fac Ext Cet Arc Hub Fac Upp Total Allies 2 | . . . . . . . 2 . . . . . Largest Group 1 | . . . . . . . 1 1 . . . . Highest-Rated Group 159 | . . . . . . . 159 20 . . . . Highest-Rated Ally 159 | . . . . . . . 159 20 . . . . Total Orders . | . . . . . . . . . . . . . Ally Attacks 20 | . . . . . . . 20 . . . . . Total Damage 476 | . . . . . . . 476 . . . . . Kills 4 | . . . . . . . 4 . . . . . Allies Corrupted . | . . . . . . . . . . . . . Allies Melted . | . . . . . . . . . . . . . Intel | -11 -10 -10 -9 -8 -7 -6 -6 -6 -6 -6 -5 -5 ------- Run | Yrd Mat Min Mat Mat Fac Fac Ext Cet Arc Hub Fac Upp Active Infowar (turns) . | . . . . . . . . . . . . . Robot Analysis Total . | . . . . . . . . . . . . . Derelict Logs Recovered 1 | . . . . . . . . . . . . 1 Drone Launches . | . . . . . . . . . . . . . Drone Recoveries . | . . . . . . . . . . . . . Exploration | -11 -10 -10 -9 -8 -7 -6 -6 -6 -6 -6 -5 -5 ------------- Run | Yrd Mat Min Mat Mat Fac Fac Ext Cet Arc Hub Fac Upp Turns Passed 9040 | 53 879 306 1491 1827 168 622 1680 459 377 186 591 401 Spaces Moved 4879 | 54 619 187 824 962 92 500 722 183 183 87 278 188 Core 16 | 5 . . . . . . . . . . . 11 Treads 553 | . . . . . . . . 155 183 87 128 . Legs 217 | . . . 35 . . . 154 28 . . . . Wheels 4093 | 49 619 187 789 962 92 500 568 . . . 150 177 Hover . | . . . . . . . . . . . . . Flight . | . . . . . . . . . . . . . Fastest Speed 50 | 50 80 110 110 110 116 100 100 160 160 160 100 110 Average Speed 127 | 77 106 110 117 128 118 112 135 186 165 160 141 164 Slowest Speed 1100 | 80 155 110 400 160 175 116 400 470 240 160 240 1100 Overloaded Moves . | . . . . . . . . . . . . . Propulsion Burnouts . | . . . . . . . . . . . . . Robots Hopped . | . . . . . . . . . . . . . Potential Cave-ins . | . . . . . . . . . . . . . Cave-ins Triggered . | . . . . . . . . . . . . . Exploration Rate (%) 42 | 3 84 39 61 66 2 12 71 67 96 15 10 23 Regions Visited 12 Branch Regions 6 Pre-discovered Areas 1 | . . . . . . . . . . . . 1 Known Exits Taken 2 | . . 1 . . . . 1 . . . . . Unknown Exits Taken 10 | 1 1 . 1 1 1 1 . 1 1 1 1 . Scrap Searched 2 | . . 1 . . . . . . . . . 1 Spaces Dug . | . . . . . . . . . . . . . Terrain Destroyed 105 | . . . . 1 . . 1 6 22 26 32 17 Melee . | . . . . . . . . . . . . . Projectile 105 | . . . . 1 . . 1 6 22 26 32 17 AOE . | . . . . . . . . . . . . . Terrain Rammed . | . . . . . . . . . . . . . Walls Destroyed . | . . . . . . . . . . . . . Machines Disabled . | . . . . . . . . . . . . . Actions | -11 -10 -10 -9 -8 -7 -6 -6 -6 -6 -6 -5 -5 --------- Run | Yrd Mat Min Mat Mat Fac Fac Ext Cet Arc Hub Fac Upp Total 6598 | 62 789 250 1136 1341 125 559 1141 251 226 103 382 233 Wait 715 | 1 108 33 128 188 7 38 165 11 7 1 18 10 Move 4867 | 53 618 186 823 961 91 499 721 182 182 86 277 188 Hop . | . . . . . . . . . . . . . Pick Up 102 | 2 18 4 22 19 5 4 11 7 2 . 6 2 Fast Attach 52 | 6 3 . 6 11 3 2 7 5 1 . 7 1 Attach 63 | . . . 13 14 2 2 5 9 2 . 10 6 Detach 8 | . . . 1 1 . . . 3 . . 3 . Swap 92 | . 3 2 9 16 1 6 32 3 8 1 10 1 Drop 120 | . 4 3 16 28 4 7 31 5 8 1 11 2 Fire 539 | . 31 22 117 103 12 1 135 26 15 14 40 23 Melee . | . . . . . . . . . . . . . Ram 5 | . 4 . 1 . . . . . . . . . Kick . | . . . . . . . . . . . . . Crush 1 | . . . . . . . . . 1 . . . Escape Stasis 34 | . . . . . . . 34 . . . . . Rewire . | . . . . . . . . . . . . . Trap . | . . . . . . . . . . . . . Miscellaneous . | . . . . . . . . . . . . . Route ------- -11/Scrapyard -10/Materials (discovered 4 exits: *Mat x3 / [*Min]) -10/Mines -9/Materials -8/Materials -7/Factory -6/Factory -6/Extension (discovered 3 exits: *Fac x2 / *Cet) -6/Cetus -6/Archives (discovered 3 exits: *Fac / [*Hub x2]) -6/Hub_04(d) -5/Factory -5/Upper Caves History --------- Turn | Location | Event 17 | -11/Scrapyard | Discovered new exit (range 15) 54 | -11/Scrapyard | Entered Materials 55 | -10/Materials | Met a group of wandering Federalists 136 | -10/Materials | Lost 5 allies 216 | -10/Materials | Discovered new exit (range 16) 303 | -10/Materials | Build established: Mutant 576 | -10/Materials | Discovered new exit (range 16) 713 | -10/Materials | Discovered new exit (range 10) 815 | -10/Materials | Identified exit to Materials 849 | -10/Materials | Repaired Wheel 875 | -10/Materials | Repaired Wheel 906 | -10/Materials | Repaired Wheel 933 | -10/Materials | Entered Mines 991 | -10/Mines | Core integrity fell below 50% 1152 | -10/Mines | Discovered exit to Materials (range 12) 1239 | -10/Mines | Entered Materials 1239 | -9/Materials | Evolved 2 slots: Utility x2 1288 | -9/Materials | Repaired Lgt. Nuclear Core 2181 | -9/Materials | Lost 3 parts (2n1w) 2477 | -9/Materials | Discovered new exit (range 4) 2730 | -9/Materials | Build established: Scavenger-Mutant 2730 | -9/Materials | Entered another Materials area 2730 | -8/Materials | Evolved 2 slots: Power x1, Weapon x1 3006 | -8/Materials | Central database locked down 3041 | -8/Materials | Build established: Scavenger-Gunner 3194 | -8/Materials | Lost 5 parts (2p2n1u) 3614 | -8/Materials | Repaired Imp. Cooling System 3659 | -8/Materials | Repaired Imp. Deuterium Engine 4371 | -8/Materials | Discovered new exit (range 5) 4396 | -8/Materials | Garrison activated, responded to threat 4516 | -8/Materials | Core integrity fell below 50% 4557 | -8/Materials | Entered Factory 4557 | -7/Factory | Evolved 2 slots: Propulsion x1, Utility x1 4591 | -7/Factory | Discovered new exit (range 15) 4725 | -7/Factory | Entered another Factory area 4725 | -6/Factory | Evolved 2 slots: Propulsion x1, Utility x1 4882 | -6/Factory | Identified exit to DSF 4924 | -6/Factory | Build established: Scavenger-Tank 5102 | -6/Factory | Repaired Hrd. Medium Armor Plating 5332 | -6/Factory | Discovered new exit (range 13) 5347 | -6/Factory | Entered Extension 5386 | -6/Extension | Identified exit to Cetus 5647 | -6/Extension | Disrupted transfer network 5975 | -6/Extension | Spotted B-75 Beast 5991 | -6/Extension | Rescued A7 6080 | -6/Extension | Spotted B-75 Beast 6101 | -6/Extension | Destroyed B-75 Beast 6108 | -6/Extension | Extracted ID and sensor layout for unrecognized location from A7's data core 6174 | -6/Extension | Discovered new exit (range 3) 6902 | -6/Extension | Rescued a captive Derelict 6977 | -6/Extension | Discovered new exit (range 10) 7027 | -6/Extension | Entered Cetus 7027 | -6/Cetus | Accompanied by 1 ally 7050 | -6/Cetus | Spotted Cetus Guard 7051 | -6/Cetus | Spotted Cetus Guard 7073 | -6/Cetus | Spotted Cetus Guard 7081 | -6/Cetus | Spotted Cetus Guard 7095 | -6/Cetus | Destroyed Cetus Guard 7108 | -6/Cetus | Core integrity fell below 50% 7114 | -6/Cetus | Destroyed Cetus Guard 7132 | -6/Cetus | Destroyed Cetus Guard 7162 | -6/Cetus | Lost 11 parts (3p4n2u2w) 7405 | -6/Cetus | Discovered new exit (range 15) 7453 | -6/Cetus | Spotted Cetus Guard 7453 | -6/Cetus | Spotted Cetus Guard 7486 | -6/Cetus | Entered Archives 7620 | -6/Archives | Discovered new exit (range 15) 7693 | -6/Archives | Unable to access archive contents 7701 | -6/Archives | Discovered new exit (range 16) 7709 | -6/Archives | Unable to access archive contents 7776 | -6/Archives | Unable to access archive contents 7792 | -6/Archives | Discovered new exit (range 13) 7863 | -6/Archives | Entered Hub_04(d) 7944 | -6/Hub_04(d) | Garrison activated, responded to threat 8020 | -6/Hub_04(d) | Discovered new exit (range 10) 8049 | -6/Hub_04(d) | Entered Factory 8049 | -5/Factory | Evolved 2 slots: Power x1, Weapon x1 8318 | -5/Factory | Lost 6 parts (1n2u3w) 8634 | -5/Factory | Discovered new exit (range 5) 8640 | -5/Factory | Entered Upper Caves 8944 | -5/Upper Caves | Lost 17 parts (2p6n4u5w) 8963 | -5/Upper Caves | Core integrity fell below 50% 8999 | -5/Upper Caves | Core integrity fell below 20% 9041 | -5/Upper Caves | Destroyed by S-27 Virus with Autogun Last Messages --------------- 08917_ Destroyed Lgt. Angular Momentum Engine. 08917_ G-50 Soldier knocked back. 08920_ Carbon-fiber Leg fries itself beyond repair. 08920_ Slug penetrates G-50 Soldier. 08921_ System corrupted: Matter fused (-7). 08923_ Slug penetrates Wall. 08923_ G-50 Soldier destroyed. 08951_ Acquired 4 matter. 08955_ Magnetic Acceleration Cannon destroyed. 08962_ Slug penetrates S-27 Virus. 08964_ S-27 Virus destroyed. 08968_ Lgt. Nuclear Core fries itself beyond repair. 08968_ Adv. KE Penetrator destroyed. 08970_ Imp. Field Recycling Unit collects Lgt. Nuclear Core, recycling 5 matter... 08978_ Acquired 28 matter. 08984_ Autogun fries itself beyond repair. 08984_ VTOL Module fries itself beyond repair. 09026_ Imp. Field Recycling Unit destroyed. 09039_ Acquired Neutrino Core. Map ----- +----------------------------------------------------+ | ?????????????????????????????????????????????????? | | ?????????????????????????????????????????????????? | | ?????????????????????????????????????????????????? | | ?????????????????????????????????????????????????? | | ?????????????????????????????????????????????????? | | ?????????????????????????????????????????????????? | | ?????????????????????????????????????????????????? | | ??????????????????????????????????????????###????? | | ??????????????????????????????????????????# #????? | | ?????????????????????????????????????????##"###??? | | ??????????????????????? ????????????????## #??? | | ???????????????????????? ???????????????# #??? | | ????????????????????????? ???????????????# "###? | | ?????????????????????????? ###########???# "# ## | | ????????????????????????# $"" #??## ## | | ????????????????????????# " "" #??# # #? | | ????????????????????????# " "$""" #?## #?? | | ????????????????????????# """ ### ##? | | ????????????????????????# "" "" ## | | ??????????????????????### """" " ## # | | ?????????????????????## "" ##### | | ????????????????????## #???## ## | | ?????????????????? ###""#%###????## ## | | ????????????????????### #?## % %# ##?######## | | ??????????????????????# !### s %% ### ##??# | | ?????????????????# ##!%@ss % ;#### ### | | ??????????????# ;#;%##?## ## | | ??????????????# ## ## ######?## | | ?????????????????# #?#####?# ### | | ??????????????? #### ????????# ### | | ????????????? ????#?????????# ### | | ???????????? #????????????????## ### | | ???????????? ????????????????????## ## | | ??????????????????????????????????## #? | | ???????????????????????????????????#### ## #? | | ??????????????????????????????????????## ##### ## | | ???????????????????????????????????????####??# | | ?????????????????????????????????????????????# | | ?????????????????????????????????????????????# ## | | ???????????????????????????????????????????? ?# | | ???????????????????????????????????????????####?## | | ?????????????????????????????????????????????????# | | ?????????????????????????????????????????????????? | | ?????????????????????????????????????????????????? | | ?????????????????????????????????????????????????? | | ?????????????????????????????????????????????????? | | ?????????????????????????????????????????????????? | | ?????????????????????????????????????????????????? | | ?????????????????????????????????????????????????? | | ?????????????????????????????????????????????????? | +----------------------------------------------------+ Best States ------------- Heat Dissipation 102 Energy Generation 52 Energy Capacity 625 Matter Stores 300 Matter Capacity 300 Sight Range 16 Terrain Scan Density 10 Armor Coverage 675 Point Defense Rating 80 Evasion (%) 44 Targeting Accuracy 8 Recoil Reduction 4 Kinecelleration 30 Item Schematics ----------------- Beam Rifle | -9/Materials | Scanalyzed Core Shielding | -9/Materials | Scanalyzed Hrd. Light Armor Plating | -8/Materials | Scanalyzed Imp. Cooling System | -8/Materials | Scanalyzed Robot Schematics ------------------ None Fabricated ------------ Nothing Repaired ---------- Wheel | 72% | -10/Materials Wheel | 67% | -10/Materials Lgt. Nuclear Core | 2% | -9/Materials Imp. Cooling System | 57% | -8/Materials Imp. Deuterium Engine | 13% | -8/Materials Hrd. Medium Armor Plating | 3% | -6/Factory Studied --------- None Alien Tech Used ----------------- None Achievements -------------- Construction Begets Destruction Heavy Suspicion I Have A Map? Challenges ------------ None Game ------ Seed NodePoweredDeconstructor Manual? 0 Play Time 02:14:03 Cumulative 306.7 hours Start 2026.01.04 @ 10:34:28 End 2026.01.04 @ 12:49:22 Sessions 1 Manual Loads 0 Difficulty Rogue Special Mode None Game No. 263 Rogue 251 Adventurer 12 Explorer 0 Win Type - Total 1 Types 1/0/0/0/0/0/0/0/0/0 Lore% 32 Gallery% 44 Achievement% 22 Wizard Run 0 Options --------- Layout 1 ASCII 0 Keyboard 0 Movement Mouse Keybinds 0 Fullscreen 1 Font 32/SmallcapsGlow Map View 77x35 Zoom Use 0% Tactical HUD 1 Map Filters NONE Filters NONE Steam 1 RUN: 3a0f9489-ee81-4868-9b78-f85925d9ec25